[Event "NED-ch U14 Youth 2019"]
[Site "Assen"]
[Date "2019.05.02"]
[Round "7.2"]
[White "Slagboom, Leandro"]
[Black "Yeh, Timo"]
[Result "1/2-1/2"]
[ECO "A09"]
[WhiteElo "1738"]
[BlackElo "1783"]
[Annotator "NA"]
[PlyCount "111"]
[EventDate "2019.04.28"]
[EventType "swiss"]
[EventCountry "NED"]
[SourceTitle "playchess.com"]
[Source "ChessBase"]
[SourceQuality "1"]
[TimeControl "5400+30"]

1. Nf3 {[%emt 0:00:00]} d5 {[%emt 0:00:00]} 2. c4 {[%emt 0:00:00]} d4 {[%emt 0:00:00]} 3. b4 {[%emt 0:00:00]} c5 {[%emt 0:00:00]} 4. bxc5 {[%emt 0:00:00]} e5 {[%emt 0:00:06]} 5. Nxe5 {[%emt 0:00:33]} Bxc5 {[%emt 0:00:04]} 6. Nd3 {[%emt 0:04:08]} Be7 {[%emt 0:00:25]} 7. Bb2 {[%emt 0:03:20]} Bf5 {[%emt 0:01:34]} 8. Qb3 {[%emt 0:01:27]} Bxd3 {[%emt 0:01:50]} 9. Qxd3 {[%emt 0:01:12]} Nc6 {[%emt 0:00:19]} 10. g3 {[%emt 0:02:35]} Bf6 {[%emt 0:04:15]} 11. Bg2 {[%emt 0:04:01]} Nge7 {[%emt 0:00:07]} 12. O-O {[%emt 0:00:55]} Rc8 {[%emt 0:01:12]} 13. Qb3 {[%emt 0:03:04]} O-O {[%emt 0:01:22]} 14. d3 {[%emt 0:00:48]} Qd7 {[%emt 0:00:53]} 15. Nd2 {[%emt 0:00:37]} Na5 {[%emt 0:00:23]} 16. Qd1 {[%emt 0:00:55]} Be5 {[%emt 0:01:15]} 17. Nf3 {[%emt 0:01:20]} Ng6 {[%emt 0:00:07]} 18. Nxe5 {[%emt 0:01:10]} Nxe5 {[%emt 0:00:01]} 19. Qd2 {[%emt 0:01:30]} Nac6 {[%emt 0:02:21]} 20. Rab1 {[%emt 0:05:57]} b6 {[%emt 0:01:35]} 21. Rfc1 {[%emt 0:00:50]} Qd6 {[%emt 0:02:46]} 22. Qc2 {[%emt 0:07:18]} Qf6 {[%emt 0:05:23]} 23. h3 {[%emt 0:04:39]} Nd7 {[%emt 0:01:10]} 24. Qa4 {[%emt 0:02:15]} Nc5 {[%emt 0:00:34]} 25. Qb5 {[%emt 0:01:26]} Rfd8 {[%emt 0:04:39]} 26. Ba3 {[%emt 0:05:01]} Ne5 {[%emt 0:01:54]} 27. Bxc5 {[%emt 0:01:19]} Rxc5 {[%emt 0:00:08]} 28. Qb4 {[%emt 0:03:15]} h5 {[%emt 0:01:00]} 29. Qd2 {[%emt 0:05:54]} Ng6 {[%emt 0:01:05]} 30. h4 {[%emt 0:03:50]} Re8 {[%emt 0:01:50]} 31. a4 {[%emt 0:02:22]} Ne5 {[%emt 0:00:43]} 32. Rb5 {[%emt 0:01:41]} Ng4 {[%emt 0:00:30]} 33. Rf1 {[%emt 0:04:12]} Rce5 {[%emt 0:01:09]} 34. Be4 {[%emt 0:01:31]} Qd6 {[%emt 0:04:00]} 35. Qb4 {[%emt 0:01:33]} Qh6 {[%emt 0:09:24]} 36. c5 {[%emt 0:02:48]} f5 {[%emt 0:00:35]} 37. Bf3 {[%emt 0:01:26]} f4 {[%emt 0:00:30]} 38. cxb6 {[%emt 0:01:24]} axb6 {[%emt 0:34:47]} 39. Rxe5 {[%emt 0:05:12]} Nxe5 {[%emt 0:00:19]} 40. Qxd4 {[%emt 0:02:01]} Nxf3+ {[%emt 0:00:12]} 41. exf3 {[%emt 0:00:01]} Rf8 {[%emt 0:00:27]} 42. Qd5+ {[%emt 0:01:29]} Kh8 {[%emt 0:00:12]} 43. Qg5 {[%emt 0:01:06]} Qxg5 {[%emt 0:01:04]} 44. hxg5 {[%emt 0:00:02]} Rf5 {[%emt 0:00:07]} 45. gxf4 {[%emt 0:00:28]} Rxf4 {[%emt 0:00:06]} 46. Rb1 {[%emt 0:00:29]} Rxa4 {[%emt 0:00:28]} 47. Rxb6 {[%emt 0:00:11]} Kh7 {[%emt 0:00:33]} 48. Rd6 {[%emt 0:01:02]} Rf4 {[%emt 0:00:21]} 49. Kg2 {[%emt 0:00:43]} Rf5 {[%emt 0:00:32]} 50. g6+ {[%emt 0:00:31]} Kh6 {[%emt 0:00:03]} 51. Kg3 {[%emt 0:01:42]} Rg5+ {[%emt 0:00:56]} 52. Kh4 {[%emt 0:01:40]} Rf5 {[%emt 0:00:11]} 53. Kg3 {[%emt 0:01:22]} Rg5+ {[%emt 0:00:07]} 54. Kf4 {[%emt 0:00:18]} h4 {[%emt 0:00:17]} 55. Rd8 {[%emt 0:04:13]} Kxg6 {[%emt 0:00:13]} 56. Rd6+ {[%emt 0:09:14]} 1/2-1/2

[Event "NED-ch U14 Youth 2019"]
[Site "Assen"]
[Date "2019.05.02"]
[Round "7.3"]
[White "Van der Hagen, Loek"]
[Black "De Winter, Arthur"]
[Result "1/2-1/2"]
[ECO "B48"]
[WhiteElo "1931"]
[BlackElo "1661"]
[Annotator "NA"]
[PlyCount "71"]
[EventDate "2019.04.28"]
[EventType "swiss"]
[EventCountry "NED"]
[SourceTitle "playchess.com"]
[Source "ChessBase"]
[SourceQuality "1"]
[TimeControl "5400+30"]

1. e4 {[%emt 0:00:00]} c5 {[%emt 0:00:00]} 2. Nf3 {[%emt 0:00:00]} e6 {[%emt 0:00:00]} 3. d4 {[%emt 0:00:00]} cxd4 {[%emt 0:00:00]} 4. Nxd4 {[%emt 0:00:01]} Nc6 {[%emt 0:00:16]} 5. Nc3 {[%emt 0:00:15]} a6 {[%emt 0:00:27]} 6. Be3 {[%emt 0:00:19]} Qc7 {[%emt 0:00:12]} 7. Qf3 {[%emt 0:00:24]} Ne5 {[%emt 0:01:36]} 8. Qg3 {[%emt 0:02:29]} b5 {[%emt 0:01:46]} 9. O-O-O {[%emt 0:02:30]} Bb7 {[%emt 0:02:28]} 10. f3 {[%emt 0:10:21]} Nf6 {[%emt 0:07:10]} 11. Bxb5 {[%emt 0:09:01]} axb5 {[%emt 0:02:40]} 12. Ndxb5 {[%emt 0:00:42]} Qb8 {[%emt 0:00:36]} 13. Bb6 {[%emt 0:01:04]} d6 {[%emt 0:21:21]} 14. Bc7 {[%emt 0:02:21]} Qc8 {[%emt 0:00:10]} 15. Bxd6 {[%emt 0:00:38]} Ned7 {[%emt 0:00:42]} 16. Nc7+ {[%emt 0:03:29]} Kd8 {[%emt 0:00:17]} 17. Nxa8 {[%emt 0:01:38]} Bxa8 {[%emt 0:01:17]} 18. Bxf8 {[%emt 0:01:26]} Rxf8 {[%emt 0:00:14]} 19. Qxg7 {[%emt 0:00:57]} Ke7 {[%emt 0:01:47]} 20. Rd2 {[%emt 0:01:46]} Qc5 {[%emt 0:03:35]} 21. Rhd1 {[%emt 0:02:42]} Ne5 {[%emt 0:03:05]} 22. f4 {[%emt 0:16:50]} Nc4 {[%emt 0:06:12]} 23. e5 {[%emt 0:11:51]} Nd5 {[%emt 0:00:20]} 24. Nxd5+ {[%emt 0:00:12]} Bxd5 {[%emt 0:00:09]} 25. Qf6+ {[%emt 0:00:40]} Kd7 {[%emt 0:01:53]} 26. Rd3 {[%emt 0:02:23]} Kc7 {[%emt 0:15:48]} 27. Rc3 {[%emt 0:09:16]} Rb8 {[%emt 0:07:56]} 28. Qxf7+ {[%emt 0:01:11]} Kc6 {[%emt 0:00:16]} 29. Qxh7 {[%emt 0:12:44]} Rxb2 {[%emt 0:00:34]} 30. Rxc4 {[%emt 0:00:58]} Qxc4 {[%emt 0:00:09]} 31. Kxb2 {[%emt 0:00:26]} Qb4+ {[%emt 0:00:07]} 32. Kc1 {[%emt 0:02:32]} Qxf4+ {[%emt 0:00:08]} 33. Rd2 {[%emt 0:01:34]} Qf1+ {[%emt 0:00:07]} 34. Kb2 {[%emt 0:00:26]} Qb5+ {[%emt 0:00:12]} 35. Kc1 {[%emt 0:00:54]} Qf1+ {[%emt 0:00:07]} 36. Kb2 {[%emt 0:00:28]} 1/2-1/2

[Event "NED-ch U14 Youth 2019"]
[Site "Assen"]
[Date "2019.05.02"]
[Round "7.4"]
[White "Bartels, Vladimir"]
[Black "Labruyere, Roger"]
[Result "0-1"]
[ECO "B23"]
[WhiteElo "1748"]
[BlackElo "1922"]
[Annotator "NA"]
[PlyCount "78"]
[EventDate "2019.04.28"]
[EventType "swiss"]
[EventCountry "NED"]
[SourceTitle "playchess.com"]
[Source "ChessBase"]
[SourceQuality "1"]
[TimeControl "5400+30"]

1. e4 {[%emt 0:00:00]} c5 {[%emt 0:00:00]} 2. Nc3 {[%emt 0:00:00]} d6 {[%emt 0:00:00]} 3. f4 {[%emt 0:00:00]} Nc6 {[%emt 0:00:00]} 4. Nf3 {[%emt 0:00:00]} g6 {[%emt 0:00:00]} 5. Bc4 {[%emt 0:00:02]} Bg7 {[%emt 0:00:00]} 6. d3 {[%emt 0:00:17]} e6 {[%emt 0:00:00]} 7. O-O {[%emt 0:00:35]} Nge7 {[%emt 0:00:00]} 8. Qe1 {[%emt 0:00:41]} O-O {[%emt 0:00:00]} 9. Qh4 {[%emt 0:01:51]} Nd4 {[%emt 0:00:07]} 10. Nxd4 {[%emt 0:06:43]} cxd4 {[%emt 0:00:06]} 11. Ne2 {[%emt 0:00:24]} d5 {[%emt 0:02:12]} 12. Bb3 {[%emt 0:00:59]} b5 {[%emt 0:06:56]} 13. Bd2 {[%emt 0:04:42]} dxe4 {[%emt 0:00:47]} 14. dxe4 {[%emt 0:04:25]} Re8 {[%emt 0:03:47]} 15. Qg3 {[%emt 0:08:36]} a5 {[%emt 0:06:42]} 16. a3 {[%emt 0:03:26]} Bb7 {[%emt 0:01:02]} 17. Qd3 {[%emt 0:02:58]} Qb6 {[%emt 0:03:37]} 18. Kh1 {[%emt 0:02:08]} Kh8 {[%emt 0:01:07]} 19. Ng3 {[%emt 0:00:30]} Rac8 {[%emt 0:05:46]} 20. f5 {[%emt 0:07:21]} exf5 {[%emt 0:06:09]} 21. exf5 {[%emt 0:00:25]} Nxf5 {[%emt 0:03:10]} 22. Nxf5 {[%emt 0:00:09]} Be4 {[%emt 0:00:54]} 23. Qg3 {[%emt 0:05:09]} Bxf5 {[%emt 0:00:31]} 24. Bxf7 {[%emt 0:03:25]} Rf8 {[%emt 0:01:12]} 25. Bb3 {[%emt 0:00:41]} a4 {[%emt 0:00:08]} 26. Ba2 {[%emt 0:02:30]} Rxc2 {[%emt 0:00:37]} 27. Bb4 {[%emt 0:00:21]} Re8 {[%emt 0:03:16]} 28. Bb1 {[%emt 0:05:15]} Rxb2 {[%emt 0:07:28]} 29. Bxf5 {[%emt 0:00:11]} gxf5 {[%emt 0:00:07]} 30. Rxf5 {[%emt 0:03:07]} Qg6 {[%emt 0:02:59]} 31. Qxg6 {[%emt 0:05:13]} hxg6 {[%emt 0:00:04]} 32. Rxb5 {[%emt 0:02:41]} d3 {[%emt 0:00:06]} 33. Rd1 {[%emt 0:00:54]} d2 {[%emt 0:00:20]} 34. Rg1 {[%emt 0:05:43]} Bd4 {[%emt 0:01:05]} 35. Rd5 {[%emt 0:01:07]} Bxg1 {[%emt 0:00:07]} 36. Bc3+ {[%emt 0:03:07]} Kg8 {[%emt 0:00:59]} 37. Bxb2 {[%emt 0:03:50]} Re1 {[%emt 0:01:43]} 38. g3 {[%emt 0:02:12]} Bd4+ {[%emt 0:00:05]} 39. Kg2 {[%emt 0:00:05]} d1=Q {[%emt 0:00:07]} 0-1

[Event "NED-ch U14 Youth 2019"]
[Site "Assen"]
[Date "2019.05.02"]
[Round "7.5"]
[White "Kutchoukov, Daniel"]
[Black "Jakhari, Ansh"]
[Result "1-0"]
[ECO "B52"]
[WhiteElo "1862"]
[BlackElo "1630"]
[Annotator "NA"]
[PlyCount "63"]
[EventDate "2019.04.28"]
[EventType "swiss"]
[EventCountry "NED"]
[SourceTitle "playchess.com"]
[Source "ChessBase"]
[SourceQuality "1"]
[TimeControl "5400+30"]

1. e4 {[%emt 0:00:00]} c5 {[%emt 0:00:40]} 2. Nf3 {[%emt 0:00:00]} d6 {[%emt 0:00:11]} 3. Bb5+ {[%emt 0:00:00]} Bd7 {[%emt 0:00:05]} 4. Bxd7+ {[%emt 0:00:00]} Qxd7 {[%emt 0:00:08]} 5. c4 {[%emt 0:00:05]} Nf6 {[%emt 0:00:18]} 6. Nc3 {[%emt 0:00:06]} e6 {[%emt 0:00:08]} 7. O-O {[%emt 0:00:24]} Nc6 {[%emt 0:00:10]} 8. d4 {[%emt 0:00:29]} cxd4 {[%emt 0:00:35]} 9. Nxd4 {[%emt 0:00:02]} Be7 {[%emt 0:00:14]} 10. f4 {[%emt 0:02:31]} O-O {[%emt 0:00:18]} 11. Be3 {[%emt 0:00:35]} Rac8 {[%emt 0:00:45]} 12. b3 {[%emt 0:02:25]} Rfd8 {[%emt 0:02:02]} 13. Qe2 {[%emt 0:03:27]} Qe8 {[%emt 0:05:34]} 14. Rad1 {[%emt 0:08:47]} Nxd4 {[%emt 0:02:59]} 15. Bxd4 {[%emt 0:00:43]} b6 {[%emt 0:00:42]} 16. Kh1 {[%emt 0:07:15]} Qc6 {[%emt 0:08:09]} 17. f5 {[%emt 0:16:33]} a6 {[%emt 0:06:58]} 18. a4 {[%emt 0:01:36]} Re8 {[%emt 0:00:29]} 19. Qe3 {[%emt 0:17:43]} Rb8 {[%emt 0:06:39]} 20. Qg3 {[%emt 0:02:06]} Kh8 {[%emt 0:10:28]} 21. Bxf6 {[%emt 0:06:48]} gxf6 {[%emt 0:00:50]} 22. Qh3 {[%emt 0:02:06]} Qc8 {[%emt 0:01:47]} 23. Rf4 {[%emt 0:11:30]} Rg8 {[%emt 0:01:32]} 24. Rh4 {[%emt 0:00:11]} Rg7 {[%emt 0:00:03]} 25. Ne2 {[%emt 0:00:42]} Qg8 {[%emt 0:05:41]} 26. Nf4 {[%emt 0:01:35]} Rb7 {[%emt 0:03:30]} 27. Rh6 {[%emt 0:04:34]} Rg4 {[%emt 0:01:03]} 28. Rxh7+ {[%emt 0:00:14]} Qxh7 {[%emt 0:00:05]} 29. Qxg4 {[%emt 0:00:06]} exf5 {[%emt 0:01:01]} 30. exf5 {[%emt 0:01:12]} Bf8 {[%emt 0:41:56]} 31. Nd5 {[%emt 0:01:39]} Bg7 {[%emt 0:00:00]} 32. Rd3 {[%emt 0:00:14]} 1-0

[Event "NED-ch U14 Youth 2019"]
[Site "Assen"]
[Date "2019.05.02"]
[Round "7.6"]
[White "Dekker, Thiemen"]
[Black "Catalan, Ciro"]
[Result "1/2-1/2"]
[ECO "B22"]
[WhiteElo "1521"]
[BlackElo "1599"]
[Annotator "NA"]
[PlyCount "64"]
[EventDate "2019.04.28"]
[EventType "swiss"]
[EventCountry "NED"]
[SourceTitle "playchess.com"]
[Source "ChessBase"]
[SourceQuality "1"]
[TimeControl "5400+30"]

1. e4 {[%emt 0:00:00]} c5 {[%emt 0:00:00]} 2. c3 {[%emt 0:00:00]} Nf6 {[%emt 0:00:00]} 3. e5 {[%emt 0:00:00]} Nd5 {[%emt 0:00:00]} 4. d4 {[%emt 0:00:00]} cxd4 {[%emt 0:00:00]} 5. Nf3 {[%emt 0:00:02]} Nc6 {[%emt 0:00:38]} 6. cxd4 {[%emt 0:00:06]} d6 {[%emt 0:00:06]} 7. Bc4 {[%emt 0:01:13]} Nb6 {[%emt 0:00:11]} 8. Bb5 {[%emt 0:00:58]} Bd7 {[%emt 0:06:03]} 9. exd6 {[%emt 0:01:48]} exd6 {[%emt 0:00:29]} 10. Nc3 {[%emt 0:01:06]} Be7 {[%emt 0:11:01]} 11. O-O {[%emt 0:01:51]} O-O {[%emt 0:00:03]} 12. Re1 {[%emt 0:06:31]} a6 {[%emt 0:02:55]} 13. Bd3 {[%emt 0:07:49]} Re8 {[%emt 0:17:25]} 14. a3 {[%emt 0:04:26]} d5 {[%emt 0:07:17]} 15. Bf4 {[%emt 0:11:04]} Rc8 {[%emt 0:07:57]} 16. h3 {[%emt 0:02:05]} Bf6 {[%emt 0:01:12]} 17. Ne5 {[%emt 0:09:19]} g6 {[%emt 0:03:32]} 18. Nxc6 {[%emt 0:02:06]} Bxc6 {[%emt 0:01:21]} 19. Rxe8+ {[%emt 0:03:03]} Qxe8 {[%emt 0:00:18]} 20. Be3 {[%emt 0:00:49]} Bg7 {[%emt 0:09:52]} 21. Rc1 {[%emt 0:04:34]} Qe7 {[%emt 0:06:24]} 22. Qf3 {[%emt 0:10:30]} Rd8 {[%emt 0:06:16]} 23. Qe2 {[%emt 0:07:43]} Re8 {[%emt 0:02:18]} 24. Qd2 {[%emt 0:06:12]} Qd8 {[%emt 0:04:56]} 25. Re1 {[%emt 0:02:34]} Nd7 {[%emt 0:01:23]} 26. Rc1 {[%emt 0:02:49]} Nf8 {[%emt 0:01:47]} 27. Be2 {[%emt 0:02:19]} Ne6 {[%emt 0:02:48]} 28. Bf3 {[%emt 0:00:38]} Qd6 {[%emt 0:00:52]} 29. b4 {[%emt 0:04:14]} Rd8 {[%emt 0:01:15]} 30. Qd3 {[%emt 0:02:26]} Nf4 {[%emt 0:01:16]} 31. Qd2 {[%emt 0:00:30]} Ne6 {[%emt 0:00:06]} 32. Qd3 {[%emt 0:00:28]} Nf4 {[%emt 0:00:27]} 1/2-1/2

[Event "NED-ch U14 Youth 2019"]
[Site "Assen"]
[Date "2019.05.02"]
[Round "7.9"]
[White "Boghossian, Wahe"]
[Black "Van Kuijk, Vadim"]
[Result "1-0"]
[ECO "B33"]
[WhiteElo "1820"]
[BlackElo "1589"]
[Annotator "NA"]
[PlyCount "77"]
[EventDate "2019.04.28"]
[EventType "swiss"]
[EventCountry "NED"]
[SourceTitle "playchess.com"]
[Source "ChessBase"]
[SourceQuality "1"]
[TimeControl "5400+30"]

1. e4 {[%emt 0:00:00]} c5 {[%emt 0:00:00]} 2. Nf3 {[%emt 0:00:00]} Nc6 {[%emt 0:00:00]} 3. d4 {[%emt 0:00:00]} cxd4 {[%emt 0:00:00]} 4. Nxd4 {[%emt 0:00:00]} Nf6 {[%emt 0:00:06]} 5. Nc3 {[%emt 0:00:10]} e5 {[%emt 0:00:10]} 6. Nb3 {[%emt 0:01:10]} Bb4 {[%emt 0:01:29]} 7. Bd3 {[%emt 0:02:01]} O-O {[%emt 0:25:11]} 8. Bd2 {[%emt 0:04:05]} d6 {[%emt 0:01:11]} 9. O-O {[%emt 0:00:35]} Be6 {[%emt 0:02:54]} 10. a3 {[%emt 0:03:22]} Bc5 {[%emt 0:02:57]} 11. Nxc5 {[%emt 0:01:09]} dxc5 {[%emt 0:00:52]} 12. b3 {[%emt 0:06:01]} Nd4 {[%emt 0:03:25]} 13. Bg5 {[%emt 0:02:58]} Rc8 {[%emt 0:13:46]} 14. Kh1 {[%emt 0:10:30]} c4 {[%emt 0:12:48]} 15. bxc4 {[%emt 0:00:39]} Bxc4 {[%emt 0:00:13]} 16. Bxc4 {[%emt 0:00:24]} Rxc4 {[%emt 0:00:34]} 17. Nd5 {[%emt 0:06:03]} h5 {[%emt 0:08:45]} 18. Qd3 {[%emt 0:05:27]} Rc6 {[%emt 0:12:18]} 19. Nxf6+ {[%emt 0:01:28]} Rxf6 {[%emt 0:05:01]} 20. c3 {[%emt 0:05:36]} Ne6 {[%emt 0:01:07]} 21. Qxd8 {[%emt 0:00:18]} Rxd8 {[%emt 0:00:37]} 22. Bxf6 {[%emt 0:00:08]} gxf6 {[%emt 0:00:11]} 23. Rfd1 {[%emt 0:00:16]} Rc8 {[%emt 0:00:53]} 24. Rac1 {[%emt 0:01:09]} Nf4 {[%emt 0:00:56]} 25. g3 {[%emt 0:01:10]} Ne2 {[%emt 0:00:15]} 26. Rc2 {[%emt 0:00:47]} Nd4 {[%emt 0:00:32]} 27. Rb2 {[%emt 0:01:47]} Rxc3 {[%emt 0:00:11]} 28. Rxb7 {[%emt 0:00:13]} Rxa3 {[%emt 0:00:21]} 29. Rc1 {[%emt 0:00:48]} f5 {[%emt 0:02:46]} 30. exf5 {[%emt 0:00:52]} Nxf5 {[%emt 0:03:39]} 31. Rcc7 {[%emt 0:00:32]} Nd6 {[%emt 0:01:43]} 32. Rxa7 {[%emt 0:00:28]} Rb3 {[%emt 0:00:34]} 33. Rd7 {[%emt 0:00:22]} Rb6 {[%emt 0:00:28]} 34. Kg2 {[%emt 0:00:23]} Kg7 {[%emt 0:00:32]} 35. Ra5 {[%emt 0:01:41]} Kf6 {[%emt 0:00:26]} 36. Rd8 {[%emt 0:03:13]} Ke6 {[%emt 0:00:37]} 37. Rh8 {[%emt 0:00:27]} Rb2 {[%emt 0:00:29]} 38. Rxh5 {[%emt 0:00:24]} Rb8 {[%emt 0:00:29]} 39. Rhxe5+ {[%emt 0:00:39]} 1-0

[Event "NED-ch U14 Youth 2019"]
[Site "Assen"]
[Date "2019.05.02"]
[Round "7.10"]
[White "De Putter, Sven"]
[Black "Franke, Daniel"]
[Result "0-1"]
[ECO "B23"]
[WhiteElo "1381"]
[BlackElo "1465"]
[Annotator "NA"]
[PlyCount "84"]
[EventDate "2019.04.28"]
[EventType "swiss"]
[EventCountry "NED"]
[SourceTitle "playchess.com"]
[Source "ChessBase"]
[SourceQuality "1"]
[TimeControl "5400+30"]

1. e4 {[%emt 0:00:00]} c5 {[%emt 0:00:00]} 2. Nc3 {[%emt 0:00:00]} g6 {[%emt 0:00:00]} 3. Bc4 {[%emt 0:00:01]} Bg7 {[%emt 0:00:00]} 4. f4 {[%emt 0:00:27]} e6 {[%emt 0:04:26]} 5. Nf3 {[%emt 0:01:15]} Nc6 {[%emt 0:01:27]} 6. d3 {[%emt 0:00:21]} Nge7 {[%emt 0:01:26]} 7. Qe2 {[%emt 0:01:47]} O-O {[%emt 0:02:31]} 8. O-O {[%emt 0:00:54]} Re8 {[%emt 0:01:01]} 9. Qf2 {[%emt 0:01:27]} d5 {[%emt 0:01:33]} 10. Bb3 {[%emt 0:02:21]} Nd4 {[%emt 0:01:03]} 11. Qg3 {[%emt 0:03:31]} Nxf3+ {[%emt 0:01:19]} 12. Rxf3 {[%emt 0:02:16]} Bd4+ {[%emt 0:08:40]} 13. Kh1 {[%emt 0:01:57]} Bxc3 {[%emt 0:00:17]} 14. bxc3 {[%emt 0:02:22]} dxe4 {[%emt 0:00:05]} 15. Rf2 {[%emt 0:02:48]} Nf5 {[%emt 0:01:35]} 16. Qh3 {[%emt 0:01:01]} b6 {[%emt 0:04:24]} 17. Bb2 {[%emt 0:01:25]} e3 {[%emt 0:06:58]} 18. Re2 {[%emt 0:03:37]} Qc7 {[%emt 0:03:17]} 19. g4 {[%emt 0:01:32]} Bb7+ {[%emt 0:00:22]} 20. Kg1 {[%emt 0:00:57]} Qc6 {[%emt 0:00:05]} 21. Rg2 {[%emt 0:01:17]} Qxg2+ {[%emt 0:00:25]} 22. Qxg2 {[%emt 0:00:27]} Bxg2 {[%emt 0:00:04]} 23. Kxg2 {[%emt 0:00:17]} Nd6 {[%emt 0:01:01]} 24. Kf3 {[%emt 0:05:32]} b5 {[%emt 0:01:31]} 25. Ba3 {[%emt 0:01:18]} Rac8 {[%emt 0:01:15]} 26. Kxe3 {[%emt 0:00:51]} Red8 {[%emt 0:01:04]} 27. c4 {[%emt 0:03:35]} a6 {[%emt 0:01:01]} 28. cxb5 {[%emt 0:00:43]} axb5 {[%emt 0:00:11]} 29. c4 {[%emt 0:00:20]} b4 {[%emt 0:00:24]} 30. Bb2 {[%emt 0:00:08]} Ra8 {[%emt 0:04:08]} 31. Bf6 {[%emt 0:01:10]} Rd7 {[%emt 0:02:32]} 32. h4 {[%emt 0:01:44]} Ne8 {[%emt 0:01:35]} 33. Be5 {[%emt 0:06:01]} Ng7 {[%emt 0:10:33]} 34. Rg1 {[%emt 0:02:06]} h5 {[%emt 0:00:40]} 35. Bxg7 {[%emt 0:03:32]} Kxg7 {[%emt 0:01:47]} 36. gxh5 {[%emt 0:00:33]} Kf6 {[%emt 0:00:08]} 37. hxg6 {[%emt 0:01:16]} fxg6 {[%emt 0:00:04]} 38. Rg5 {[%emt 0:03:26]} Ra5 {[%emt 0:04:55]} 39. Ke4 {[%emt 0:02:15]} Rh7 {[%emt 0:00:44]} 40. d4 {[%emt 0:00:52]} Rxh4 {[%emt 0:02:22]} 41. dxc5 {[%emt 0:01:45]} Rh5 {[%emt 0:00:28]} 42. Re5 {[%emt 0:10:49]} Rxc5 {[%emt 0:00:27]} 0-1

[Event "NED-ch U14 Youth 2019"]
[Site "Assen"]
[Date "2019.05.02"]
[Round "7.11"]
[White "Van Foreest, Nanne"]
[Black "Tiggelman, Vincent"]
[Result "1-0"]
[ECO "B13"]
[WhiteElo "1790"]
[BlackElo "1378"]
[Annotator "NA"]
[PlyCount "96"]
[EventDate "2019.04.28"]
[EventType "swiss"]
[EventCountry "NED"]
[SourceTitle "playchess.com"]
[Source "ChessBase"]
[SourceQuality "1"]
[TimeControl "5400+30"]

1. e4 {[%emt 0:00:00]} c6 {[%emt 0:00:00]} 2. Nf3 {[%emt 0:00:00]} d5 {[%emt 0:00:00]} 3. Nc3 {[%emt 0:00:00]} Bg4 {[%emt 0:00:37]} 4. exd5 {[%emt 0:00:26]} cxd5 {[%emt 0:00:10]} 5. h3 {[%emt 0:01:09]} Bxf3 {[%emt 0:00:14]} 6. Qxf3 {[%emt 0:00:04]} e6 {[%emt 0:00:17]} 7. d4 {[%emt 0:00:46]} Nc6 {[%emt 0:02:12]} 8. Bb5 {[%emt 0:03:29]} Nf6 {[%emt 0:01:12]} 9. O-O {[%emt 0:00:57]} Be7 {[%emt 0:00:20]} 10. Be3 {[%emt 0:17:15]} O-O {[%emt 0:00:20]} 11. Ne2 {[%emt 0:03:03]} Rc8 {[%emt 0:01:33]} 12. c3 {[%emt 0:02:07]} Qb6 {[%emt 0:02:01]} 13. Bd3 {[%emt 0:06:42]} Rfe8 {[%emt 0:11:11]} 14. Qg3 {[%emt 0:14:15]} Nh5 {[%emt 0:12:42]} 15. Qf3 {[%emt 0:05:44]} Nf6 {[%emt 0:00:35]} 16. g4 {[%emt 0:10:58]} Nd7 {[%emt 0:03:08]} 17. Qg3 {[%emt 0:01:06]} Qd8 {[%emt 0:00:48]} 18. f4 {[%emt 0:00:54]} Nf8 {[%emt 0:02:22]} 19. g5 {[%emt 0:01:59]} g6 {[%emt 0:02:13]} 20. h4 {[%emt 0:00:49]} Bd6 {[%emt 0:02:22]} 21. h5 {[%emt 0:07:03]} a6 {[%emt 0:00:30]} 22. hxg6 {[%emt 0:00:20]} fxg6 {[%emt 0:00:21]} 23. Kg2 {[%emt 0:05:24]} Ne7 {[%emt 0:00:48]} 24. Rh1 {[%emt 0:04:52]} Nf5 {[%emt 0:02:42]} 25. Qh3 {[%emt 0:00:23]} Qe7 {[%emt 0:02:04]} 26. Rae1 {[%emt 0:00:54]} b5 {[%emt 0:01:24]} 27. Ng3 {[%emt 0:02:26]} Qg7 {[%emt 0:01:11]} 28. Nxf5 {[%emt 0:00:38]} exf5 {[%emt 0:00:13]} 29. Qf3 {[%emt 0:00:38]} Qf7 {[%emt 0:01:21]} 30. Re2 {[%emt 0:01:35]} Re7 {[%emt 0:00:56]} 31. Rhe1 {[%emt 0:00:14]} Rce8 {[%emt 0:00:11]} 32. Bd2 {[%emt 0:00:19]} Rxe2+ {[%emt 0:01:33]} 33. Rxe2 {[%emt 0:00:01]} Rxe2+ {[%emt 0:00:09]} 34. Qxe2 {[%emt 0:00:03]} Qe6 {[%emt 0:00:17]} 35. a4 {[%emt 0:00:13]} bxa4 {[%emt 0:01:07]} 36. Bxa6 {[%emt 0:00:12]} Qe4+ {[%emt 0:01:35]} 37. Qxe4 {[%emt 0:00:55]} dxe4 {[%emt 0:00:15]} 38. Bb5 {[%emt 0:02:27]} a3 {[%emt 0:00:34]} 39. bxa3 {[%emt 0:00:07]} Bxa3 {[%emt 0:00:05]} 40. c4 {[%emt 0:00:25]} Kf7 {[%emt 0:01:03]} 41. Kf2 {[%emt 0:03:27]} Ke6 {[%emt 0:47:54]} 42. Ba5 {[%emt 0:00:50]} Kd6 {[%emt 0:00:00]} 43. c5+ {[%emt 0:02:39]} Bxc5 {[%emt 0:00:00]} 44. dxc5+ {[%emt 0:00:05]} Kxc5 {[%emt 0:00:00]} 45. Be8 {[%emt 0:00:42]} Ne6 {[%emt 0:00:00]} 46. Ke3 {[%emt 0:00:00]} Nxg5 {[%emt 0:01:55]} 47. fxg5 {[%emt 0:00:08]} Kd6 {[%emt 0:00:04]} 48. Bb4+ {[%emt 0:00:25]} Ke6 {[%emt 0:00:58]} 1-0

[Event "NED-ch U14 Youth 2019"]
[Site "Assen"]
[Date "2019.05.02"]
[Round "7.12"]
[White "Roebers, Eline"]
[Black "Brandsma, Romayn"]
[Result "1-0"]
[ECO "C41"]
[WhiteElo "2077"]
[BlackElo "1958"]
[Annotator "NA"]
[PlyCount "41"]
[EventDate "2019.04.28"]
[EventType "swiss"]
[EventCountry "NED"]
[SourceTitle "playchess.com"]
[Source "ChessBase"]
[SourceQuality "1"]
[TimeControl "5400+30"]

1. e4 {[%emt 1:30:30]} d6 {[%emt 1:30:30]} 2. d4 {[%emt 0:00:30]} Nf6 {[%emt 0:00:30]} 3. Nc3 {[%emt 0:00:30]} e5 {[%emt 0:00:30]} 4. Nf3 {[%emt 0:00:30]} Nbd7 {[%emt 0:00:30]} 5. Bc4 {[%emt 0:00:30]} Be7 {[%emt 0:00:30]} 6. O-O {[%emt 0:00:30]} O-O {[%emt 0:00:30]} 7. h3 {[%emt 0:00:30]} b6 {[%emt 0:00:30]} 8. Qe2 {[%emt 0:00:30]} c6 9. a4 {[%emt 0:00:30]} Qc7 {[%emt 0:01:00]} 10. Bg5 {[%emt 0:00:30]} Re8 {[%emt 0:00:30]} 11. Rfe1 {[%emt 0:00:30]} Bb7 {[%emt 0:00:30]} 12. dxe5 {[%emt 0:00:30]} Nxe5 {[%emt 0:00:30]} 13. Nxe5 {[%emt 0:00:30]} dxe5 {[%emt 0:00:30]} 14. Nd1 {[%emt 0:00:30]} Rad8 {[%emt 0:00:30]} 15. Ne3 {[%emt 0:00:30]} c5 {[%emt 0:00:30]} 16. Nf5 {[%emt 0:00:30]} h6 {[%emt 0:00:30]} 17. Bxh6 {[%emt 0:00:30]} gxh6 {[%emt 0:00:30]} 18. Nxh6+ {[%emt 0:00:30]} Kh7 {[%emt 0:00:30]} 19. Nxf7 {[%emt 0:00:30]} Rd4 {[%emt 0:00:30]} 20. Ng5+ {[%emt 0:00:30]} Kg6 {[%emt 0:00:30]} 21. Bf7+ {[%emt 0:00:30]} 1-0